bitfinex/quotes_BTCUSD_20250904
["timestamp","ask_amount","ask_price","bid_price","bid_amount"]
[1757014844338,1.21684699,110080.0,110070.0,0.18667255]
[1757014844546,1.21684699,110080.0,110070.0,0.00497]
[1757014844768,0.84165625,110080.0,110070.0,0.18667255]
[1757014845188,1.21684699,110080.0,110070.0,0.18667255]
[1757014846043,0.5,110080.0,110070.0,0.18667255]
[1757014846281,0.5,110080.0,110070.0,0.18966255]
[1757014846666,0.74833671,110090.0,110070.0,0.18667255]
[1757014846867,1.09158671,110090.0,110080.0,0.18395711]
[1757014847049,1.09358671,110090.0,110080.0,0.18168604]
[1757014847273,0.57275597,110090.0,110080.0,0.18365604]
[1757014847477,1.10254671,110090.0,110080.0,0.18365604]
[1757014848107,0.37675296,110090.0,110080.0,0.18365604]
[1757014848316,0.50403019,110090.0,110080.0,0.18365604]
[1757014848521,0.34943019,110090.0,110080.0,0.33825604]
[1757014848728,0.00943019,110090.0,110080.0,0.34124604]
[1757014849277,0.00943019,110090.0,110080.0,0.34224604]
[1757014849929,0.00943019,110090.0,110080.0,0.18465604]
[1757014850148,0.01468019,110090.0,110080.0,0.33728604]
[1757014850353,0.00943019,110090.0,110080.0,0.33925604]
[1757014850664,0.19109973,110090.0,110080.0,0.34025604]
[1757014851138,0.00943019,110090.0,110080.0,0.34025604]
[1757014851558,0.19109973,110090.0,110080.0,0.18565604]
[1757014851775,0.19109973,110090.0,110080.0,0.34021604]
[1757014852215,0.00943019,110090.0,110080.0,0.34021604]
[1757014852804,0.00943019,110090.0,110080.0,0.18565604]
[1757014853037,0.56629047,110090.0,110080.0,0.00397]
[1757014853252,0.35086973,110090.0,110080.0,0.002]
[1757014853465,0.72606047,110090.0,110080.0,0.002]
[1757014853893,1.06606047,110090.0,110080.0,0.002]
[1757014855164,1.05706047,110090.0,110080.0,0.002]
[1757014855564,1.08438286,110090.0,110080.0,0.002]
[1757014856318,0.70919212,110090.0,110080.0,0.002]
[1757014856527,1.08438286,110090.0,110080.0,0.002]
[1757014856727,1.08426286,110090.0,110080.0,0.002]
[1757014859215,0.70907212,110090.0,110080.0,0.002]
[1757014859448,1.08426286,110090.0,110080.0,0.002]
[1757014859902,0.70907212,110090.0,110080.0,0.002]
[1757014860106,1.08426286,110090.0,110080.0,0.002]
[1757014860319,1.09326286,110090.0,110080.0,0.002]
[1757014860531,1.11280445,110090.0,110080.0,0.002]
[1757014860744,2.02913945,110090.0,110080.0,0.002]
[1757014860968,0.73753371,110090.0,110080.0,0.002]
[1757014861177,1.11272445,110090.0,110080.0,0.002]
[1757014861409,2.37396545,110090.0,110080.0,0.002]
[1757014861822,0.73757371,110090.0,110080.0,0.00397]
[1757014862029,1.11276445,110090.0,110080.0,0.00397]
[1757014862256,1.11276445,110090.0,110080.0,0.00624107]
[1757014862465,1.11280445,110090.0,110080.0,0.00427107]
[1757014862671,1.11280445,110090.0,110080.0,0.00624107]
[1757014862874,0.95840445,110090.0,110080.0,0.00624107]
[1757014862999,1.11280445,110090.0,110080.0,0.18792711]
[1757014863201,1.11280445,110090.0,110080.0,0.18565604]
[1757014863815,1.11280445,110090.0,110080.0,0.00397]
[1757014864020,1.11280445,110090.0,110080.0,0.00427107]
[1757014865060,0.39829417,110090.0,110080.0,0.18792711]
[1757014865273,0.73232371,110090.0,110080.0,0.18565604]
[1757014865477,0.70378212,110090.0,110080.0,0.18565604]
[1757014865686,0.34043019,110090.0,110080.0,0.18565604]
[1757014865900,0.52209973,110090.0,110080.0,0.18565604]
[1757014866138,0.52714973,110090.0,110080.0,0.18565604]
[1757014866562,0.90234047,110090.0,110080.0,0.18565604]
[1757014868447,0.92191351,110090.0,110080.0,0.18565604]
[1757014868868,0.91890351,110090.0,110080.0,0.18565604]
[1757014869080,0.92191351,110090.0,110080.0,0.18565604]
[1757014869874,0.92191351,110090.0,110080.0,0.002]
[1757014870304,0.92191351,110090.0,110080.0,0.18368604]
[1757014870512,0.36000323,110090.0,110080.0,0.18563604]
[1757014870717,0.00043019,110090.0,110080.0,0.18563604]
[1757014872485,0.00043019,110090.0,110080.0,0.18857604]
[1757014872725,0.00043019,110090.0,110080.0,0.65568277]
[1757014873039,0.00043019,110090.0,110080.0,0.69063277]
[1757014874081,0.00043019,110090.0,110080.0,0.68963277]
[1757014874504,0.00043019,110090.0,110080.0,0.69263277]
[1757014875053,0.00043019,110090.0,110080.0,0.69163277]
[1757014875451,0.00043019,110090.0,110080.0,0.72194818]
[1757014877004,0.00043019,110090.0,110080.0,0.87622818]
[1757014878375,0.00014079,110100.0,110090.0,0.18166954]
[1757014878577,0.00014079,110100.0,110090.0,0.64877627]
[1757014878849,0.00014079,110100.0,110090.0,0.65072627]
[1757014879552,0.00218079,110100.0,110090.0,0.65472627]
[1757014879787,0.00014079,110100.0,110090.0,0.43377553]
[1757014879993,0.00519079,110100.0,110090.0,0.43186553]
[1757014880226,0.00218079,110100.0,110090.0,0.43381553]
[1757014880433,0.00014079,110100.0,110090.0,0.43381553]
[1757014880841,0.00519079,110100.0,110090.0,0.27953553]
[1757014881023,0.00519079,110100.0,110090.0,0.43381553]
[1757014881345,0.00218079,110100.0,110090.0,0.43381553]
[1757014881563,0.00218079,110100.0,110090.0,0.27953553]
[1757014881767,0.00519079,110100.0,110090.0,0.33998954]
[1757014884208,0.00519079,110100.0,110090.0,0.34193954]
[1757014884412,0.00519079,110100.0,110090.0,0.33998954]
[1757014885025,0.00519079,110100.0,110090.0,0.34193954]
[1757014885645,0.00014079,110100.0,110090.0,0.34193954]
[1757014886790,0.00519079,110100.0,110090.0,0.33986954]
[1757014887456,0.00519079,110100.0,110090.0,0.34181954]
[1757014887681,0.00519079,110100.0,110090.0,0.34177954]
[1757014890235,0.00014079,110100.0,110090.0,0.34177954]
[1757014890448,0.00014079,110100.0,110090.0,0.34471954]
[1757014890657,0.00014079,110100.0,110090.0,0.71991028]
[1757014891554,0.00014079,110100.0,110090.0,0.71697028]
[1757014892158,0.00014079,110100.0,110090.0,0.34177954]
[1757014892899,0.00014079,110100.0,110090.0,0.81182627]
[1757014895317,0.00014079,110100.0,110090.0,0.8391393]
[1757014896999,0.00014079,110100.0,110090.0,0.8737693]
[1757014897578,0.00014079,110100.0,110090.0,0.8717693]
[1757014898083,0.00014079,110100.0,110090.0,0.8747693]
[1757014898665,0.00014079,110100.0,110090.0,0.8697693]
[1757014899082,0.00014079,110100.0,110090.0,0.8777693]
[1757014899705,0.00014079,110100.0,110090.0,0.89870812]
[1757014899929,0.00014079,110100.0,110090.0,0.94870812]
[1757014900383,0.00014079,110100.0,110090.0,0.94862812]
[1757014900836,0.00014079,110100.0,110090.0,1.32381886]
[1757014901102,0.00014079,110100.0,110090.0,0.31084856]
[1757014901328,0.00014079,110100.0,110090.0,0.8400793]
[1757014903344,0.00512079,110100.0,110090.0,0.30889856]
[1757014903587,0.00512079,110100.0,110090.0,0.83783162]
[1757014905349,0.00512079,110100.0,110090.0,0.83775162]
[1757014905764,0.56170689,110100.0,110090.0,0.03531303]
[1757014905974,1.89212551,110100.0,110090.0,0.008]
[1757014906184,1.50895855,110100.0,110090.0,0.008]
[1757014906629,0.75566674,110100.0,110090.0,0.004]
[1757014906855,1.48597137,110100.0,110090.0,0.004]
[1757014907079,0.18168604,110080.0,110070.0,0.18170077]
[1757014907285,0.5615991,110080.0,110060.0,0.34523747]
[1757014907495,0.55963561,110070.0,110060.0,0.34527747]
[1757014907648,0.37991306,110070.0,110060.0,0.34527747]
[1757014909530,0.56161561,110070.0,110060.0,0.34727747]
[1757014909664,0.00498,110070.0,110060.0,0.34727747]
[1757014909869,0.56161561,110070.0,110060.0,0.34927747]
[1757014910262,0.37991306,110070.0,110060.0,0.34927747]
[1757014911142,0.00498,110070.0,110060.0,0.34927747]
[1757014912373,0.00498,110070.0,110060.0,0.35140747]
[1757014913049,0.00498,110070.0,110060.0,0.34927747]
[1757014914610,0.00498,110070.0,110060.0,0.35140747]
[1757014915439,0.00498,110070.0,110060.0,0.34927747]
[1757014916027,0.37991306,110070.0,110060.0,0.34927747]
[1757014916277,0.00498,110070.0,110060.0,0.34927747]
[1757014916480,0.37991306,110070.0,110060.0,0.34927747]
[1757014916645,0.37991306,110070.0,110060.0,0.35140747]
[1757014916873,0.37493306,110070.0,110060.0,0.35140747]
[1757014917084,0.37493306,110080.0,110070.0,0.18170255]
[1757014917287,0.75184612,110080.0,110070.0,0.18383255]
[1757014917483,0.75484612,110080.0,110070.0,0.18383255]
[1757014918566,0.75484612,110080.0,110070.0,0.18483255]
[1757014918772,0.37991306,110080.0,110070.0,0.18583255]
[1757014920524,0.75484612,110080.0,110070.0,0.18583255]
[1757014921195,0.74986612,110080.0,110070.0,0.18583255]
[1757014921409,0.009,110090.0,110080.0,0.18168604]
[1757014921658,0.009,110090.0,110080.0,0.80751509]
[1757014921894,0.009,110090.0,110080.0,0.80458509]
[1757014922151,0.009,110090.0,110080.0,0.80751509]
[1757014922389,0.009,110090.0,110080.0,0.43258203]
[1757014922818,0.009,110090.0,110080.0,0.42965203]
[1757014923514,0.009,110090.0,110080.0,0.43165203]
[1757014923919,0.009,110090.0,110080.0,0.43365203]
[1757014925027,0.38393306,110090.0,110080.0,0.43365203]
[1757014925467,0.38591306,110090.0,110080.0,0.27973203]
[1757014925700,0.38891306,110090.0,110080.0,0.43361203]
[1757014925973,0.38891306,110090.0,110080.0,0.43148203]
[1757014926200,0.38891306,110090.0,110080.0,0.27760203]
[1757014926425,0.38891306,110090.0,110080.0,0.43148203]
[1757014926873,0.01398,110090.0,110080.0,0.43148203]
[1757014927089,0.01398,110090.0,110080.0,0.43347203]
[1757014927291,0.38591306,110090.0,110080.0,0.43347203]
[1757014927498,0.38894306,110090.0,110080.0,0.27959203]
[1757014927710,0.38894306,110090.0,110080.0,0.43152203]
[1757014928345,0.38894306,110090.0,110080.0,0.43351203]
[1757014928571,0.38894306,110090.0,110080.0,0.43152203]
[1757014929415,0.38894306,110090.0,110080.0,0.27760203]
[1757014929622,0.38894306,110090.0,110080.0,0.43152203]
[1757014929844,0.38894306,110090.0,110080.0,0.43148203]
[1757014930052,0.38894306,110090.0,110080.0,0.18568604]
[1757014930053,0.94554566,110090.0,110080.0,0.18568604]
[1757014930703,1.09946566,110090.0,110080.0,0.004]
[1757014931129,1.09946566,110090.0,110080.0,0.18568604]
[1757014931301,1.09946566,110090.0,110080.0,0.004]
[1757014931533,1.09946566,110090.0,110080.0,0.18568604]
[1757014931743,1.09946566,110090.0,110080.0,0.004]
[1757014932375,1.09046566,110090.0,110080.0,0.004]
[1757014933405,1.43046566,110090.0,110080.0,0.004]
[1757014934856,0.52667954,110090.0,110080.0,0.18568604]
[1757014935069,1.10387612,110090.0,110080.0,0.18568604]
[1757014935281,0.72894306,110090.0,110080.0,0.18767604]
[1757014935691,0.38591306,110090.0,110080.0,0.18767604]
[1757014935870,0.38393306,110090.0,110080.0,0.18767604]
[1757014936021,0.38393306,110090.0,110080.0,0.18771604]
[1757014936636,0.38608306,110090.0,110080.0,0.18771604]
[1757014937318,0.009,110090.0,110080.0,0.18771604]
[1757014937528,0.38393306,110090.0,110080.0,0.18771604]
[1757014938635,0.38911306,110090.0,110080.0,0.18572604]
[1757014938862,0.38393306,110090.0,110080.0,0.18771604]
[1757014940633,0.38608306,110090.0,110080.0,0.18771604]
[1757014941028,0.38393306,110090.0,110080.0,0.18771604]
[1757014945857,0.009,110090.0,110080.0,0.18771604]
[1757014946095,0.37708306,110090.0,110080.0,0.18771604]
[1757014946297,0.38011306,110090.0,110080.0,0.33960604]
[1757014947000,0.00518,110090.0,110080.0,0.33960604]
[1757014947408,0.38011306,110090.0,110080.0,0.33960604]
[1757014948167,0.17896964,110090.0,110080.0,0.33960604]
[1757014948363,0.37493306,110090.0,110080.0,0.33960604]
[1757014948612,0.00215,110090.0,110080.0,0.33960604]
[1757014948841,0.37708306,110090.0,110080.0,0.33960604]
[1757014949182,0.37708306,110090.0,110080.0,0.34159604]
[1757014949491,0.1841672,110090.0,110080.0,0.34474604]
[1757014949702,0.55672689,110100.0,110090.0,0.18166954]
[1757014949703,0.18179383,110100.0,110090.0,0.18166954]
[1757014949896,0.93380995,110100.0,110090.0,0.18166954]
[1757014951413,0.93380995,110100.0,110090.0,0.18266954]
[1757014952062,0.93380995,110100.0,110090.0,0.18266954]
[1757014952701,0.93375071,110100.0,110090.0,0.18266954]
[1757014953683,0.75209767,110100.0,110090.0,0.18266954]
[1757014953890,0.90597767,110100.0,110090.0,0.18266954]
[1757014954497,1.08763071,110100.0,110090.0,0.18266954]
[1757014954776,0.33776459,110100.0,110090.0,0.18266954]
[1757014954971,1.08763071,110100.0,110090.0,0.18266954]
[1757014957617,0.90597767,110100.0,110090.0,0.18266954]
[1757014958814,0.53104461,110100.0,110090.0,0.18266954]
[1757014959029,0.15611155,110100.0,110090.0,0.18801954]
[1757014959235,0.37716461,110100.0,110090.0,0.18801954]
[1757014959471,8.155e-05,110100.0,110090.0,0.18801954]
[1757014959688,0.37501461,110100.0,110090.0,0.18801954]
[1757014961202,8.155e-05,110100.0,110090.0,0.18801954]
[1757014961628,0.37501461,110100.0,110090.0,0.18801954]
[1757014963568,8.155e-05,110100.0,110090.0,0.18801954]
[1757014967545,8.155e-05,110100.0,110090.0,0.34185954]
[1757014968402,0.00206155,110100.0,110090.0,0.34185954]
[1757014969169,0.55865867,110100.0,110090.0,0.18266954]
[1757014969898,0.37700563,110100.0,110090.0,0.18266954]
[1757014970067,0.37700563,110100.0,110090.0,0.18481954]
[1757014970268,0.37700563,110100.0,110090.0,0.18801954]
[1757014972761,0.53084563,110100.0,110090.0,0.18801954]
[1757014973538,0.53084563,110100.0,110090.0,0.18266954]
[1757014973887,1.09012275,110100.0,110090.0,0.18266954]
[1757014974106,1.09012275,110100.0,110090.0,0.001]
[1757014974306,1.11809319,110100.0,110090.0,0.001]
[1757014974717,0.36820503,110100.0,110090.0,0.001]
[1757014974965,1.11809319,110100.0,110090.0,0.001]
[1757014977260,1.45809319,110100.0,110090.0,0.001]
[1757014977465,1.47765841,110100.0,110090.0,0.001]
[1757014978259,2.6255304,110100.0,110090.0,0.001]
[1757014978624,2.68643568,110100.0,110090.0,0.001]
[1757014978836,2.69492505,110100.0,110090.0,0.001]
[1757014979269,2.68643568,110100.0,110090.0,0.001]
[1757014979470,0.33166954,110090.0,110080.0,4e-05]
[1757014979673,2.99182262,110090.0,110080.0,4e-05]
[1757014979857,3.02177306,110090.0,110080.0,4e-05]
[1757014979998,3.02444306,110090.0,110080.0,4e-05]
[1757014980879,2.97247806,110090.0,110080.0,4e-05]
[1757014981058,2.81963806,110090.0,110080.0,4e-05]
[1757014981254,1.82800798,110090.0,110080.0,4e-05]
[1757014981457,1.29836406,110090.0,110080.0,4e-05]
[1757014981653,0.74160954,110090.0,110080.0,4e-05]
[1757014981882,1.11655362,110090.0,110080.0,0.18707604]
[1757014982090,1.27039362,110090.0,110080.0,0.18707604]
[1757014982291,0.89346954,110090.0,110080.0,0.18707604]
[1757014982494,0.74346954,110090.0,110080.0,0.18707604]
[1757014984114,0.67650954,110090.0,110080.0,0.18707604]
[1757014984349,1.05344362,110090.0,110080.0,4e-05]
[1757014984704,0.52465954,110090.0,110080.0,0.00219]
[1757014984909,1.05344362,110090.0,110080.0,0.18707604]
[1757014985575,0.89960362,110090.0,110080.0,0.18707604]
[1757014985796,1.05344362,110090.0,110080.0,0.18707604]
[1757014986211,0.67849954,110090.0,110080.0,0.18707604]
[1757014986421,1.05344362,110090.0,110080.0,0.18707604]
[1757014987911,0.67650954,110090.0,110080.0,0.18707604]
[1757014988547,0.49484,110090.0,110080.0,0.18707604]
[1757014988756,0.67650954,110090.0,110080.0,0.18707604]
[1757014988955,0.67848954,110090.0,110080.0,0.18707604]
[1757014989907,0.001,110090.0,110080.0,0.18707604]
[1757014990115,0.15484,110090.0,110080.0,0.18707604]
[1757014992190,0.001,110090.0,110080.0,0.18707604]
[1757014992423,0.001,110090.0,110080.0,0.56202012]
[1757014993389,0.83557641,110100.0,110090.0,0.18166954]
[1757014993390,0.33557641,110100.0,110090.0,0.18166954]
[1757014993559,0.33755641,110100.0,110090.0,0.18668954]
[1757014993963,0.33557641,110100.0,110090.0,0.18668954]
[1757014994948,0.33657641,110100.0,110090.0,0.18668954]
[1757014996099,0.33855641,110100.0,110090.0,0.18668954]
[1757015000068,0.33855641,110100.0,110080.0,0.33552604]
[1757015000271,0.33855641,110100.0,110090.0,0.18166954]
[1757015000499,0.33855641,110100.0,110080.0,0.33859604]
[1757015000708,0.33855641,110100.0,110090.0,0.18668954]
[1757015001362,0.33755641,110100.0,110090.0,0.18668954]
[1757015001560,0.33855641,110100.0,110090.0,0.00502]
[1757015001920,0.33855641,110100.0,110090.0,0.18166954]
[1757015002314,0.71152049,110100.0,110090.0,0.18668954]
[1757015002514,0.33657641,110100.0,110090.0,0.18668954]
[1757015002726,0.33855641,110100.0,110090.0,0.18668954]
[1757015003389,0.33755641,110100.0,110090.0,0.18668954]
[1757015003589,0.33855641,110100.0,110090.0,0.18668954]
[1757015004792,0.18273641,110100.0,110090.0,0.18668954]
[1757015004998,0.15488155,110100.0,110090.0,0.18668954]
[1757015005201,0.33653459,110100.0,110090.0,0.18668954]
[1757015005653,0.00108155,110100.0,110090.0,0.18668954]
[1757015005867,0.00108155,110100.0,110090.0,0.56163362]
[1757015006076,0.15488155,110100.0,110090.0,0.56163362]
[1757015006697,0.15388155,110100.0,110090.0,0.56163362]
[1757015006904,8.155e-05,110100.0,110090.0,0.56163362]
[1757015007114,8.155e-05,110100.0,110090.0,0.56263362]
[1757015007517,8.155e-05,110100.0,110090.0,0.18868954]
[1757015009108,8.155e-05,110100.0,110090.0,0.71743362]
[1757015010289,8.155e-05,110100.0,110090.0,0.71739362]
[1757015011685,8.155e-05,110100.0,110090.0,0.56363362]
[1757015011911,8.155e-05,110100.0,110090.0,0.71739362]
[1757015012711,8.155e-05,110100.0,110090.0,0.7447097]
[1757015014260,8.155e-05,110100.0,110090.0,0.36976562]
[1757015017822,8.155e-05,110100.0,110090.0,0.21600562]
[1757015018067,8.155e-05,110100.0,110090.0,0.36976562]
[1757015019344,8.155e-05,110100.0,110090.0,0.21600562]
[1757015019968,8.155e-05,110100.0,110090.0,0.36972562]
[1757015020557,0.18173459,110100.0,110090.0,0.21600562]
[1757015020752,8.155e-05,110100.0,110090.0,0.34240954]
[1757015022921,8.155e-05,110100.0,110090.0,0.18868954]
[1757015023161,8.155e-05,110100.0,110090.0,0.34240954]
[1757015025462,8.155e-05,110100.0,110090.0,0.18868954]
[1757015025677,8.155e-05,110100.0,110090.0,0.34240954]
[1757015027132,8.155e-05,110100.0,110090.0,0.71735727]
[1757015030254,8.155e-05,110100.0,110090.0,0.34240954]
[1757015030401,8.155e-05,110100.0,110090.0,0.71735727]
[1757015031201,8.155e-05,110100.0,110090.0,0.34240954]
[1757015031406,8.155e-05,110100.0,110090.0,0.71735727]
[1757015037574,0.02739752,110100.0,110090.0,0.71735727]
[1757015038181,0.02739752,110100.0,110090.0,0.34240954]
[1757015038182,8.155e-05,110100.0,110090.0,0.34240954]
[1757015038391,8.155e-05,110100.0,110090.0,1.18422099]
[1757015038597,8.155e-05,110100.0,110090.0,1.21806099]
[1757015039224,8.155e-05,110100.0,110090.0,1.24537333]
[1757015039402,8.155e-05,110100.0,110090.0,1.21706099]
[1757015039607,8.155e-05,110100.0,110090.0,0.46616553]
[1757015039875,8.155e-05,110100.0,110090.0,1.22767862]
[1757015040006,8.155e-05,110100.0,110090.0,1.25699096]
[1757015040203,8.155e-05,110100.0,110090.0,1.25499096]
[1757015040522,8.155e-05,110100.0,110090.0,0.88104323]
[1757015040702,1.17371432,110130.0,110120.0,0.18162005]
[1757015040906,1.20300666,110130.0,110120.0,0.18162005]
[1757015041845,1.14648364,110130.0,110120.0,0.18162005]
[1757015042562,0.99280364,110130.0,110120.0,0.18162005]
[1757015042769,1.15735694,110130.0,110120.0,0.18162005]
[1757015042969,1.15835694,110130.0,110120.0,0.18162005]
[1757015043329,1.00467694,110130.0,110120.0,0.18162005]
[1757015043594,1.16735694,110130.0,110120.0,0.18162005]
[1757015043780,1.01635694,110130.0,110120.0,0.18162005]
[1757015044096,1.17003694,110130.0,110120.0,0.18162005]
[1757015044584,1.01635694,110130.0,110120.0,0.18162005]
[1757015044765,1.17003694,110130.0,110110.0,0.18469654]
[1757015044975,1.17003694,110130.0,110120.0,0.18162005]
[1757015045521,1.16903694,110130.0,110120.0,0.18162005]
[1757015045728,1.16803694,110130.0,110120.0,0.18162005]
[1757015046103,1.16903694,110130.0,110120.0,0.18162005]
[1757015046311,1.16803694,110130.0,110120.0,0.18162005]
[1757015046642,1.16535694,110130.0,110120.0,0.18162005]
[1757015046877,1.16635694,110130.0,110120.0,0.18162005]
[1757015047082,0.18162005,110120.0,110110.0,0.18469654]
[1757015047306,0.55656778,110120.0,110110.0,0.18683654]
[1757015047733,0.55854778,110120.0,110110.0,0.18683654]
[1757015047887,0.37692773,110120.0,110110.0,0.18683654]
[1757015048092,0.78942921,110130.0,110120.0,0.18162005]
[1757015048298,1.16635694,110130.0,110120.0,0.18162005]
[1757015048869,1.16535694,110130.0,110120.0,0.18162005]
[1757015049977,0.79140921,110130.0,110120.0,0.18162005]
[1757015050185,0.0198733,110130.0,110120.0,0.18677005]
[1757015050363,0.1735133,110130.0,110120.0,0.56171778]
[1757015050522,0.16364,110130.0,110120.0,0.56171778]
[1757015050928,0.01,110130.0,110120.0,0.71535778]
[1757015052271,0.01,110130.0,110120.0,0.71635778]
[1757015052516,1.07494125,110140.0,110130.0,0.18160355]
[1757015052721,1.07704946,110140.0,110130.0,0.18160355]
[1757015053260,0.54846173,110140.0,110130.0,0.18374355]
[1757015053489,1.07695444,110140.0,110130.0,0.18675355]
[1757015054064,1.07795444,110140.0,110130.0,0.18675355]
[1757015054262,1.29926217,110140.0,110130.0,0.18160355]
[1757015054478,1.45290217,110140.0,110130.0,0.18160355]
[1757015054873,1.43865779,110140.0,110130.0,0.18160355]
[1757015055740,1.43865779,110140.0,110120.0,0.33827005]
[1757015055936,1.06371006,110140.0,110130.0,0.18160355]
[1757015056787,0.71328301,110140.0,110130.0,0.18160355]
[1757015056941,1.08823074,110140.0,110130.0,0.18160355]
[1757015057284,0.33833528,110140.0,110130.0,0.18160355]
[1757015057510,1.09723074,110140.0,110130.0,0.18160355]
[1757015057736,1.09723074,110140.0,110120.0,0.33823005]
[1757015057894,0.37494773,110130.0,110120.0,0.33823005]
[1757015058279,0.37494773,110130.0,110120.0,0.34037005]
[1757015059231,0.37494773,110130.0,110120.0,0.34137005]
[1757015060608,0.55655128,110130.0,110120.0,0.18777005]
[1757015060816,0.55655128,110130.0,110120.0,0.34137005]
[1757015061293,0.37494773,110130.0,110120.0,0.34137005]
[1757015063968,0.34496258,110140.0,110130.0,0.18160355]
[1757015064167,0.34694258,110140.0,110130.0,0.18160355]
[1757015065139,0.72189031,110140.0,110130.0,0.18160355]
[1757015065591,0.72289031,110140.0,110130.0,0.18160355]
[1757015066692,1.07189031,110140.0,110130.0,0.18160355]
[1757015067357,0.36171551,110140.0,110130.0,0.18675355]
[1757015067578,0.55026324,110140.0,110130.0,0.18675355]
[1757015067800,0.01973551,110140.0,110130.0,0.18675355]
[1757015068011,0.38507594,110140.0,110130.0,0.18675355]
[1757015068429,0.39476285,110140.0,110130.0,0.18675355]
[1757015068630,0.38507594,110140.0,110130.0,0.18675355]
[1757015069186,0.01012821,110140.0,110130.0,0.56170128]
[1757015069391,0.01012821,110140.0,110130.0,0.71526128]
[1757015069585,0.01012821,110140.0,110130.0,0.36761906]
[1757015070000,0.01012821,110140.0,110130.0,0.21405906]
[1757015070198,0.01012821,110140.0,110130.0,0.36761906]
[1757015070412,0.38507594,110140.0,110130.0,0.36761906]
[1757015071820,0.38507594,110140.0,110130.0,0.21405906]
[1757015072029,0.38507594,110140.0,110130.0,0.36761906]
[1757015072997,0.01012821,110140.0,110130.0,0.36761906]
[1757015073193,0.38507594,110140.0,110130.0,0.36761906]
[1757015074179,0.38507594,110140.0,110130.0,0.21405906]
[1757015074375,0.38507594,110140.0,110130.0,0.36761906]
[1757015077790,0.38507594,110140.0,110130.0,0.21405906]
[1757015077981,0.38507594,110140.0,110130.0,0.36761906]
[1757015078199,0.38507594,110140.0,110130.0,0.21405906]
[1757015078415,0.38705594,110140.0,110130.0,0.36242906]
[1757015078633,0.01012821,110140.0,110130.0,0.36758906]
[1757015078851,0.38507594,110140.0,110130.0,0.36758906]
[1757015083752,0.38705594,110140.0,110130.0,0.36758906]
[1757015084109,0.38507594,110140.0,110130.0,0.36758906]
[1757015087501,0.01012821,110140.0,110130.0,0.36758906]
[1757015089883,0.3848378,110140.0,110130.0,0.36758906]
[1757015090276,0.56840487,110140.0,110130.0,0.03246551]
[1757015090497,0.3894978,110140.0,110130.0,0.33508355]
[1757015090690,0.57108487,110140.0,110130.0,0.33508355]
[1757015090905,0.56840487,110140.0,110130.0,0.33508355]
[1757015091529,0.3868178,110140.0,110130.0,0.33508355]
[1757015091737,0.01210821,110140.0,110130.0,0.33508355]
[1757015091933,0.3868178,110140.0,110130.0,0.33508355]
[1757015093296,0.3868178,110140.0,110130.0,0.33825355]
[1757015093668,0.56840487,110140.0,110130.0,0.33508355]
[1757015094420,0.56840487,110140.0,110130.0,0.18160355]
[1757015094832,0.57108487,110140.0,110130.0,0.18160355]
[1757015095035,0.3868178,110140.0,110130.0,0.18160355]
[1757015095496,0.57108487,110140.0,110120.0,0.20892769]
[1757015095675,0.37470959,110130.0,110120.0,0.36240769]
[1757015095890,0.37668959,110130.0,110120.0,0.36557769]
[1757015096049,0.37668959,110130.0,110120.0,0.36756769]
[1757015097349,0.37668959,110130.0,110120.0,0.36240769]
[1757015097552,0.55829314,110130.0,110120.0,0.20892769]
[1757015097786,0.55829314,110130.0,110120.0,0.33510005]
[1757015098557,0.55829314,110130.0,110120.0,0.33610005]
[1757015100093,0.55829314,110130.0,110120.0,0.001]
[1757015100293,0.93567273,110130.0,110120.0,0.001]
[1757015100529,1.46264317,110130.0,110120.0,0.001]
[1757015100691,1.49927531,110130.0,110120.0,0.001]
[1757015100889,1.66700034,110130.0,110120.0,0.001]
[1757015101107,1.69431482,110130.0,110120.0,0.001]
[1757015101310,2.48670497,110130.0,110120.0,0.001]
[1757015101509,2.347701,110130.0,110120.0,0.001]
[1757015101791,2.35620442,110130.0,110120.0,0.001]
[1757015101997,2.50968442,110130.0,110120.0,0.001]
[1757015102417,2.56354102,110130.0,110120.0,0.001]
[1757015102842,0.18165304,110100.0,110090.0,0.19075272]
[1757015103101,0.33513304,110100.0,110090.0,0.19591272]
[1757015103325,0.33711304,110100.0,110090.0,0.19591272]
[1757015103527,0.33711304,110100.0,110090.0,0.00516]
[1757015103709,0.72166168,110100.0,110090.0,0.00516]
[1757015104164,0.72166168,110100.0,110080.0,0.37477775]
[1757015104408,0.72166168,110100.0,110080.0,0.22143854]
[1757015104586,0.72166168,110100.0,110090.0,0.18166954]
[1757015104948,0.72166168,110100.0,110090.0,0.19182954]
[1757015105358,0.72166168,110100.0,110090.0,0.18982954]
[1757015105781,0.72166168,110100.0,110090.0,0.00816]
[1757015105983,0.72166168,110100.0,110090.0,0.00916]
[1757015106181,0.72166168,110100.0,110090.0,0.00616]
[1757015107014,0.19347209,110100.0,110090.0,0.18782954]
[1757015107330,0.72166168,110100.0,110090.0,0.18982954]
[1757015107560,0.72166168,110100.0,110090.0,0.18882954]
[1757015107905,0.72166168,110100.0,110090.0,0.18982954]
[1757015108553,0.19347209,110100.0,110090.0,0.18982954]
[1757015108760,0.34695209,110100.0,110090.0,0.18982954]
[1757015109241,0.34497209,110100.0,110090.0,0.18982954]
[1757015109453,0.34695209,110100.0,110090.0,0.18982954]
[1757015109657,0.34497209,110100.0,110090.0,0.18982954]
[1757015109858,0.34695209,110100.0,110090.0,0.00816]
[1757015110059,0.36119909,110100.0,110090.0,0.00816]
[1757015110270,0.36119909,110100.0,110090.0,0.18982954]
[1757015111685,0.73590868,110100.0,110090.0,0.00816]
[1757015112112,0.73590868,110100.0,110090.0,0.18982954]
[1757015112113,0.72166168,110100.0,110090.0,0.18982954]
[1757015112716,0.72166168,110100.0,110090.0,0.00816]
[1757015112923,0.76131212,110100.0,110090.0,0.003]
[1757015113820,0.18166954,110090.0,110080.0,0.00018079]
[1757015113968,0.55637913,110090.0,110080.0,0.00018079]
[1757015114176,0.71183913,110090.0,110080.0,0.00018079]
[1757015115330,0.71450913,110090.0,110080.0,0.00118079]
[1757015115531,0.71183913,110090.0,110080.0,0.00118079]
[1757015116778,0.33712954,110090.0,110080.0,0.00118079]
[1757015116921,0.71183913,110090.0,110080.0,0.00118079]
[1757015117973,0.73916152,110090.0,110080.0,0.00118079]
[1757015119875,0.58568152,110090.0,110080.0,0.00118079]
[1757015120096,0.58370152,110090.0,110080.0,0.18805683]
[1757015120296,0.36247193,110090.0,110080.0,0.18805683]
[1757015120924,0.73718152,110090.0,110080.0,0.18805683]
[1757015121479,0.36247193,110090.0,110080.0,0.18805683]
[1757015122363,0.19774982,110090.0,110080.0,0.18805683]
[1757015122574,0.33514954,110090.0,110080.0,0.18805683]
[1757015123370,0.35210069,110090.0,110080.0,0.18805683]
[1757015123767,0.35210069,110090.0,110080.0,0.00637079]
[1757015123967,0.72879028,110090.0,110080.0,0.00637079]
[1757015124170,0.72879028,110090.0,110080.0,0.00118079]
[1757015124361,0.73147028,110090.0,110080.0,0.00118079]